fUSD/lending_fUSD_20260218
["ID","MTS","AMOUNT","RATE_DAILY","PERIOD"]
[405876012,1771378253938,-250.0,0.00017899,3]
[405876013,1771378253949,-250.0,0.00017899,3]
[405876014,1771378253959,-250.0,0.00017899,3]
[405876015,1771378253969,-250.0,0.00017899,3]
[405876016,1771378253980,-250.0,0.00017899,3]
[405876017,1771378253990,-250.0,0.00017899,3]
[405876018,1771378254000,-500.0,0.00017899,3]
[405876019,1771378254009,-250.0,0.00017899,3]
[405876020,1771378254020,-500.0,0.00017899,3]
[405876021,1771378254030,-151.0,0.00017899,3]
[405876022,1771378254040,-250.0,0.00017899,3]
[405876023,1771378254050,-200.0,0.00017899,3]
[405876024,1771378254060,-500.0,0.00017899,3]
[405876025,1771378254070,-151.0,0.00017899,3]
[405876026,1771378254080,-500.0,0.00017899,3]
[405876027,1771378254091,-151.0,0.00017899,3]
[405876028,1771378254106,-250.0,0.00017899,3]
[405876029,1771378254117,-200.0,0.00017899,3]
[405876030,1771378254127,-500.0,0.00017899,3]
[405876031,1771378254138,-151.0,0.00017899,3]
[405876032,1771378254148,-299.40346672,0.00017899,3]
[405876033,1771378254159,-200.0,0.00017899,3]
[405876034,1771378254169,-500.0,0.00017899,3]
[405876035,1771378254180,-151.0,0.00017899,3]
[405876036,1771378254190,-218.04759767,0.00017899,3]
[405876037,1771378254201,-151.0,0.00017899,3]
[405876038,1771378254216,-500.0,0.00017899,3]
[405876039,1771378254226,-151.0,0.00017899,3]
[405876040,1771378254237,-500.0,0.00017899,3]
[405876041,1771378254247,-500.0,0.00017899,3]
[405876042,1771378254258,-151.0,0.00017899,3]
[405876043,1771378254268,-500.0,0.00017899,3]
[405876044,1771378254279,-151.0,0.00017899,3]
[405876045,1771378254289,-500.0,0.00017899,3]
[405876046,1771378254299,-151.0,0.00017899,3]
[405876047,1771378254309,-151.0,0.00017899,3]
[405876048,1771378254320,-151.0,0.00017899,3]
[405876049,1771378254330,-151.0,0.00017899,3]
[405876050,1771378254340,-151.0,0.00017899,3]
[405876051,1771378254351,-151.0,0.00017899,3]
[405876052,1771378254361,-500.0,0.00017899,3]
[405876053,1771378254372,-174.5920753,0.00017899,3]
[405876054,1771378254382,-500.0,0.00017899,3]
[405876055,1771378254392,-500.0,0.00017899,3]
[405876056,1771378254402,-500.0,0.00017899,3]
[405876057,1771378254412,-500.0,0.00017899,3]
[405876058,1771378254422,-500.0,0.00017899,3]
[405876059,1771378254432,-500.0,0.00017899,3]
[405876060,1771378254442,-200.0,0.00017899,3]
[405876061,1771378254452,-500.0,0.00017899,3]
[405876062,1771378254471,-200.0,0.00017899,3]
[405876063,1771378254481,-500.0,0.00017899,3]
[405876064,1771378254491,-3000.0,0.00017899,3]
[405876065,1771378254501,-500.0,0.00017899,3]
[405876066,1771378254511,-151.0,0.00017899,3]
[405876067,1771378254523,-3000.0,0.00017899,3]
[405876068,1771378254533,-500.0,0.00017899,3]
[405876069,1771378254544,-151.0,0.00017899,3]
[405876070,1771378254554,-151.0,0.00017899,3]
[405876071,1771378254564,-3000.0,0.00017899,3]
[405876072,1771378254575,-151.0,0.00017899,3]
[405876073,1771378254584,-151.0,0.00017899,3]
[405876074,1771378254594,-3000.0,0.00017899,3]
[405876075,1771378254606,-151.0,0.00017899,3]
[405876076,1771378254617,-151.0,0.00017899,3]
[405876077,1771378254628,-151.0,0.00017899,3]
[405876078,1771378254638,-3000.0,0.00017899,3]
[405876079,1771378254648,-250.0,0.00017899,3]
[405876080,1771378254663,-151.0,0.00017899,3]
[405876081,1771378254675,-151.0,0.00017899,3]
[405876082,1771378254686,-3000.0,0.00017899,3]
[405876083,1771378254697,-151.0,0.00017899,3]
[405876084,1771378254708,-500.0,0.00017899,3]
[405876085,1771378254718,-151.0,0.00017899,3]
[405876086,1771378254729,-3000.0,0.00017899,3]
[405876087,1771378254741,-250.0,0.00017899,3]
[405876088,1771378254751,-151.0,0.00017899,3]
[405876089,1771378254762,-500.0,0.00017899,3]
[405876090,1771378254774,-151.0,0.00017899,3]
[405876091,1771378254784,-2570.81608438,0.00017899,3]
[405876092,1771378254795,-250.0,0.00017899,3]
[405876093,1771378254806,-151.0,0.00017899,3]
[405876094,1771378254816,-500.0,0.00017899,3]
[405876095,1771378254827,-151.0,0.00017899,3]
[405876096,1771378254838,-250.0,0.00017899,3]
[405876097,1771378254848,-151.0,0.00017899,3]
[405876098,1771378254861,-500.0,0.00017899,3]
[405876099,1771378254872,-151.0,0.00017899,3]
[405876100,1771378254883,-250.0,0.00017899,3]
[405876101,1771378254894,-151.0,0.00017899,3]
[405876102,1771378254905,-500.0,0.00017899,3]
[405876103,1771378254915,-151.0,0.00017899,3]
[405876104,1771378254927,-250.0,0.00017899,3]
[405876105,1771378254939,-500.0,0.00017899,3]
[405876106,1771378254951,-151.0,0.00017899,3]
[405876107,1771378254963,-250.0,0.00017899,3]
[405876108,1771378254974,-500.0,0.00017899,3]
[405876109,1771378254985,-151.0,0.00017899,3]
[405876110,1771378254998,-250.0,0.00017899,3]
[405876111,1771378255009,-250.0,0.00017899,3]
[405876112,1771378255020,-250.0,0.00017899,3]
[405876113,1771378255031,-250.0,0.00017899,3]
[405876114,1771378255042,-25000.0,0.000179,3]
[405876115,1771378255054,-2083.0,0.000179,6]
[405876116,1771378255065,-33727.00783268,0.000179,2]
[405876117,1771378255076,-20533.46148321,0.000179,2]
[405876118,1771378255086,-213.3367452,0.000179,2]
[405876119,1771378255096,-1000.0,0.00017905,2]
[405876120,1771378255107,-1000.0,0.00017913,2]
[405876121,1771378255117,-500.0,0.00017918,2]
[405876122,1771378255128,-1000.0,0.00017918,2]
[405876123,1771378255138,-1000.0,0.00017925,2]
[405876124,1771378255149,-500.0,0.00017937,4]
[405876125,1771378255159,-550.98049433,0.00017939,7]
[405876126,1771378255169,-152.0,0.00017939,3]
[405876127,1771378255180,-229.91187815,0.00017939,7]
[405876128,1771378255191,-158.88476723,0.00017948,2]
[405876129,1771378255201,-1000.0,0.00017948,2]
[405876130,1771378255213,-1000.0,0.00017968,2]
[405876131,1771378255224,-403.54428131,0.0001797,2]
[405876132,1771378255234,-500.0,0.00017972,2]
[405876133,1771378255244,-500.0,0.00017982,2]
[405876134,1771378255255,-150.0,0.00017983,2]
[405876135,1771378255266,-1576.40339977,0.0001799,2]
[405876136,1771378255276,-163.51122534,0.00017992,4]
[405876137,1771378255289,-151.0,0.00017996,2]
[405876138,1771378255300,-151.0,0.00017997,2]
[405876139,1771378255310,-300.0,0.00017998,2]
[405876140,1771378255320,-300.0,0.00017998,2]
[405876141,1771378255330,-666.0,0.00017998,2]
[405876142,1771378255341,-300.0,0.00017998,2]
[405876143,1771378255352,-300.0,0.00017998,2]
[405876144,1771378255362,-670.53907356,0.00017998,2]
[405876145,1771378255372,-300.0,0.00017999,2]
[405876146,1771378255383,-666.0,0.00017999,2]
[405876147,1771378255393,-300.0,0.00017999,2]
[405876148,1771378255404,-374447.1108995,0.00017999,2]
[405876149,1771378255415,-4380.9678672,0.00017999,2]
[405876150,1771378255425,-1013.23,0.00017999,2]
[405876151,1771378255435,-1013.23,0.00017999,2]
[405876152,1771378255446,-1013.23,0.00017999,2]
[405876153,1771378255457,-1013.23,0.00017999,2]
[405876154,1771378255467,-1013.23,0.00017999,2]
[405876155,1771378255478,-1013.23,0.00017999,2]
[405876156,1771378255488,-1013.23,0.00017999,2]
[405876157,1771378255498,-1013.32589873,0.00017999,2]
[405876158,1771378255509,-300.0,0.00017999,2]
[405876159,1771378255519,-546.97,0.00017999,2]
[405876160,1771378255529,-546.97,0.00017999,2]
[405876161,1771378255539,-546.97,0.00017999,2]
[405876162,1771378255549,-546.97,0.00017999,2]
[405876163,1771378255559,-546.97,0.00017999,2]
[405876164,1771378255570,-546.97,0.00017999,2]
[405876165,1771378255580,-546.97,0.00017999,2]
[405876166,1771378255590,-547.09394166,0.00017999,2]
[405876167,1771378255601,-500.0,0.00017999,2]
[405876168,1771378255612,-500.0,0.00017999,2]
[405876169,1771378255623,-500.0,0.00017999,2]
[405876170,1771378255633,-500.0,0.00017999,2]
[405876171,1771378255646,-500.0,0.00017999,2]
[405876172,1771378255657,-500.0,0.00017999,2]
[405876173,1771378255667,-383.99953744,0.00017999,2]
[405876174,1771378255678,-1479.1,0.00017999,2]
[405876175,1771378255688,-1479.1,0.00017999,2]
[405876176,1771378255699,-1479.1,0.00017999,2]
[405876177,1771378255709,-1479.1,0.00017999,2]
[405876178,1771378255719,-1479.1,0.00017999,2]
[405876179,1771378255730,-1479.1,0.00017999,2]
[405876180,1771378255741,-1479.1,0.00017999,2]
[405876181,1771378255751,-1479.19350963,0.00017999,2]
[405876182,1771378255762,-3285.7259004,0.00017999,2]
[405876183,1771378255773,-174.48669324,0.00017999,2]
[405876184,1771378255785,-313.76197179,0.00017999,2]
[405876185,1771378255795,-311.844149,0.00017999,2]
[405876186,1771378255806,-311.844149,0.00017999,2]
[405876187,1771378255817,-311.844149,0.00017999,2]
[405876188,1771378255829,-311.844149,0.00017999,2]
[405876189,1771378255839,-1546.47,0.00017999,2]
[405876190,1771378255850,-1546.47,0.00017999,2]
[405876191,1771378255861,-1546.47,0.00017999,2]
[405876192,1771378255871,-1546.47,0.00017999,2]
[405876193,1771378255881,-1546.47,0.00017999,2]
[405876194,1771378255892,-1546.47,0.00017999,2]
[405876195,1771378255903,-1546.47,0.00017999,2]
[405876196,1771378255915,-1546.51311819,0.00017999,2]
[405876197,1771378255926,-634.64,0.00017999,2]
[405876198,1771378255936,-634.64,0.00017999,2]
[405876199,1771378255947,-634.64,0.00017999,2]
[405876200,1771378255958,-634.64,0.00017999,2]
[405876201,1771378255969,-634.64,0.00017999,2]
[405876202,1771378255979,-634.64,0.00017999,2]
[405876203,1771378255989,-634.64,0.00017999,2]
[405876204,1771378255999,-634.75871054,0.00017999,2]
[405876205,1771378256010,-162.238527,0.00017999,2]
[405876206,1771378256021,-274.67349017,0.00017999,2]
[405876207,1771378256032,-152.91637034,0.00017999,2]
[405876208,1771378256042,-201.16330195,0.00017999,2]
[405876209,1771378256053,-1236.3586533,0.00017999,2]
[405876210,1771378256064,-151.0,0.00017999,2]
[405876211,1771378256076,-151.0,0.00017999,2]
[405876212,1771378256087,-158.396759,0.00017999,2]
[405876213,1771378256325,-151.0,0.00017999,2]
[405876214,1771378256335,-445.585732,0.00017999,2]
[405876215,1771378256344,-445.585732,0.00017999,2]
[405876216,1771378256353,-445.585732,0.00017999,2]
[405876217,1771378256362,-445.585732,0.00017999,2]
[405876218,1771378256371,-481431.999728,0.00017999,2]
[405876219,1771378256381,-1000.0,0.00017999,2]
[405876220,1771378256390,-1000.0,0.00017999,2]
[405876221,1771378256399,-1000.0,0.00017999,2]
[405876222,1771378256408,-1000.0,0.00017999,2]
[405876223,1771378256417,-1000.0,0.00017999,2]
[405876224,1771378256426,-1000.0,0.00017999,2]
[405876225,1771378256435,-1000.0,0.00017999,2]
[405876226,1771378256444,-1038.507706,0.00017999,2]
[405876227,1771378256454,-1573.195363,0.00017999,2]
[405876228,1771378256463,-1573.195363,0.00017999,2]
[405876229,1771378256472,-1573.195363,0.00017999,2]
[405876230,1771378256481,-1573.195363,0.00017999,2]
[405876231,1771378256491,-557.01252391,0.00017999,2]
[405876232,1771378256499,-300.0,0.00017999,2]
[405876233,1771378256509,-300.0,0.00017999,2]
[405876234,1771378256519,-243.22753519,0.00017999,2]
[405876235,1771378256528,-6947.36368985,0.00017999,2]
[405876236,1771378256537,-152.0,0.00017999,2]
[405876237,1771378256546,-152.0,0.00017999,2]
[405876238,1771378256555,-1275.0,0.00018,2]
[405876239,1771378256564,-150.248,0.00018,2]
[405876240,1771378256573,-1220.627,0.00018,2]
[405876241,1771378256582,-150.0,0.00018,2]
[405876242,1771378256592,-1200285.17032692,0.00018,2]
[405876243,1771378256601,-150.0,0.00018,2]
[405876244,1771378256610,-4522.71005474,0.00018,2]
[405876245,1771378256620,-150.0,0.00018,2]
[405876246,1771378256629,-18070.5419281,0.00018,2]
[405876247,1771378256638,-500.0,0.00018,2]
[405876248,1771378256648,-500.0,0.00018,2]
[405876249,1771378256660,-500.0,0.00018,2]
[405876250,1771378256671,-500.0,0.00018,2]
[405876251,1771378256680,-500.0,0.00018,2]
[405876252,1771378256690,-500.0,0.00018,2]
[405876253,1771378256700,-500.0,0.00018,2]
[405876254,1771378256710,-311.81820838,0.00018,2]
[405876255,1771378256720,-1500330.58078528,0.00018,2]
[405876256,1771378256738,-857.81402166,0.00018,2]
[405876257,1771378256749,-931.70647987,0.00018,2]
[405876258,1771378256760,-395.472,0.00018,2]
[405876259,1771378256776,-373.5644,0.00018,2]
[405876260,1771378256835,-2048.12933341,0.00013051,2]
[405876261,1771378256855,-4948.89542044,0.00013051,2]
[405876262,1771378256864,-598.4290384,0.00013873,2]
[405876263,1771378256874,-7490.58461492,0.00018,2]
[405876264,1771378256884,-4715.57684912,0.00018,2]
[405876265,1771378256895,-35747.97579876,0.00018,2]
[405876266,1771378256982,-308.72351432,0.00018,2]
[405876272,1771378352854,151.0,6.633e-05,2]
[405876273,1771378353223,151.0,6.633e-05,2]
[405876274,1771378367643,1477.84429278,6.635e-05,2]
[405876275,1771378381352,300.0,6.635e-05,2]
[405876276,1771378381841,150.0,6.635e-05,2]
[405876277,1771378501358,1200.0,6.635e-05,2]
[405876278,1771378504621,170.0,6.635e-05,3]
[405876282,1771378561541,300.0,6.635e-05,2]
[405876283,1771378561955,150.0,6.635e-05,2]
[405876284,1771378567783,219.85,6.636e-05,2]
[405876285,1771378614084,3676.73933154,6.536e-05,2]
[405876286,1771378614109,10000.01,6.536e-05,2]
[405876287,1771378614134,10000.01,6.536e-05,2]
[405876288,1771378614158,10000.01,6.536e-05,2]
[405876289,1771378614192,10000.01,6.536e-05,2]
[405876290,1771378614222,10000.01,6.536e-05,2]
[405876291,1771378614247,10000.01,6.536e-05,2]
[405876292,1771378614272,10000.01,6.536e-05,2]
[405876293,1771378614297,10000.01,6.536e-05,2]
[405876294,1771378614325,10000.01,6.536e-05,2]
[405876295,1771378620936,-9167.02,6.536e-05,2]
[405876296,1771378620999,-10000.01,6.536e-05,2]
[405876297,1771378621126,-10000.01,6.536e-05,2]
[405876298,1771378621238,-10000.01,6.536e-05,2]
[405876299,1771378621356,-10000.01,6.536e-05,2]
[405876300,1771378621455,-10000.01,6.536e-05,2]
[405876301,1771378621745,-10000.01,6.536e-05,2]
[405876302,1771378621854,-10000.01,6.536e-05,2]
[405876303,1771378621986,-10000.01,6.536e-05,2]
[405876304,1771378622105,-10000.01,6.536e-05,2]
[405876305,1771378681239,300.0,6.535e-05,2]
[405876306,1771378713534,154.30700577,6.535e-05,2]
[405876307,1771378726190,2044.55089033,6.4e-05,3]
[405876308,1771378726224,3939.1017807,6.4e-05,3]
[405876309,1771378726253,3562.0503232,6.4e-05,3]
[405876310,1771378726274,1892.69216974,6.4e-05,3]
[405876311,1771378726304,8107.31783026,6.4e-05,3]
[405876312,1771378726324,2273.25697755,6.4e-05,3]
[405876313,1771378741465,300.0,6.535e-05,2]
[405876314,1771378741495,150.0,6.535e-05,2]
[405876315,1771378801265,1200.0,6.535e-05,2]
[405876316,1771378805057,1076.75302245,6.526e-05,2]
[405876317,1771378805082,10000.01,6.526e-05,2]
[405876318,1771378805103,2906.33395077,6.526e-05,2]
[405876319,1771378861358,300.0,6.535e-05,2]
[405876320,1771378895159,747.216,6.405e-05,2]
[405876321,1771378895190,1046.46004923,6.405e-05,2]
[405876322,1771378895215,6706.17295077,6.405e-05,2]
[405876323,1771378898398,1362.50125,6.4e-05,3]
[405876324,1771378898451,1931.33579923,6.4e-05,3]
[405876325,1771378898475,643.66670079,6.4e-05,3]
[405876326,1771378898508,3545.00349999,6.4e-05,3]
[405876327,1771378898560,5811.33979922,6.4e-05,3]
[405876328,1771378898583,886.16695078,6.4e-05,3]
[405876329,1771378921435,150.0,6.535e-05,2]
[405876330,1771378934934,-207.0,6.536e-05,2]
[405876331,1771378934963,-2586.13507804,6.536e-05,2]
[405876333,1771378939368,-86.7573253,6.536e-05,2]
[405876334,1771378942129,-5000.01,6.536e-05,2]
[405876335,1771378942267,-5000.01,6.536e-05,2]
[405876336,1771378942367,-5000.01,6.536e-05,2]
[405876337,1771378944966,-4543.82572607,6.536e-05,2]
[405876338,1771378945288,-912.35854786,6.536e-05,2]
[405876356,1771379431571,-250.0,6.71e-05,2]
[405876357,1771379431581,-250.0,6.896e-05,2]
[405876358,1771379431590,-1427.86514834,7.01e-05,2]
[405876359,1771379431601,-708.27235126,7.01e-05,2]
[405876360,1771379431616,-1929.27379233,7.01e-05,2]
[405876361,1771379431635,-195.02870807,7.01e-05,2]
[405876362,1771379431646,-71.3514407,7.047e-05,2]
[405876363,1771379431658,-1428.6485593,7.047e-05,2]
[405876364,1771379431669,-54.2529713,7.25e-05,2]
[405876365,1771379431681,-1015.1628788,7.25e-05,2]
[405876366,1771379431718,-130.5841499,7.25e-05,2]
[405876367,1771379431728,-536.38255524,7.251e-05,2]
[405876368,1771379431760,-2313.61744476,7.251e-05,2]
[405876369,1771379431770,-150.0,7.251e-05,2]
[405876370,1771379431781,-1013.7111066,7.251e-05,2]
[405876371,1771379431791,-8908.81,7.252e-05,2]
[405876372,1771379431802,-150.99,7.252e-05,2]
[405876373,1771379431812,-299.99,7.252e-05,2]
[405876374,1771379431822,-150.99,7.252e-05,2]
[405876375,1771379431832,-1337.22189806,7.252e-05,2]
[405876376,1771379431844,-361.04264806,7.252e-05,2]
[405876377,1771379431857,-250.61125931,7.252e-05,2]
[405876378,1771379431892,-461.44401143,7.252e-05,2]
[405876380,1771379431903,-7589.67018314,7.252e-05,2]
[405876381,1771379431912,-499.99,7.252e-05,2]
[405876382,1771379431921,-9999.99,7.252e-05,2]
[405876383,1771379431930,-9999.99,7.252e-05,2]
[405876384,1771379431940,-999.99,7.252e-05,2]
[405876385,1771379431950,-13069.95,7.252e-05,2]
[405876386,1771379431959,-9999.99,7.252e-05,2]
[405876387,1771379431969,-9999.99,7.252e-05,2]
[405876388,1771379431978,-193.53630696,7.325e-05,2]
[405876389,1771379431989,-250.0,7.325e-05,2]
[405876390,1771379431999,-203.0,7.495e-05,2]
[405876391,1771379432010,-790.0,7.51e-05,2]
[405876392,1771379432020,-171.0,7.535e-05,2]
[405876393,1771379432029,-171.0,7.55e-05,2]
[405876395,1771379432038,-447.0,7.565e-05,2]
[405876396,1771379432047,-293.0,7.58e-05,2]
[405876398,1771379432056,-329.0,7.595e-05,2]
[405876399,1771379432067,-407.0,7.61e-05,2]
[405876400,1771379432076,-174.0,7.625e-05,2]
[405876401,1771379432086,-888.0,7.659e-05,2]
[405876402,1771379432095,-392.0,7.675e-05,2]
[405876403,1771379432105,-387.20682275,7.676e-05,2]
[405876404,1771379432114,-751.0,7.705e-05,2]
[405876405,1771379432123,-519.0,7.715e-05,2]
[405876406,1771379432132,-1296.0,7.721e-05,2]
[405876407,1771379432141,-1842.0,7.736e-05,2]
[405876408,1771379432151,-151.0,7.779e-05,2]
[405876409,1771379432160,-173.0,7.794e-05,2]
[405876410,1771379432169,-857.0,7.825e-05,2]
[405876411,1771379432178,-4129.7286,7.845e-05,2]
[405876412,1771379432188,-51431.83202042,7.845e-05,2]
[405876413,1771379432199,-38028.43677958,7.845e-05,2]
[405876414,1771379432209,-6738.3571,7.845e-05,2]
[405876415,1771379432218,-171.0,7.944e-05,2]
[405876416,1771379432228,-500.0,7.944e-05,2]
[405876417,1771379432238,-500.0,7.944e-05,2]
[405876418,1771379432247,-348.163,7.944e-05,2]
[405876419,1771379432256,-500.0,7.944e-05,2]
[405876420,1771379432265,-500.0,7.944e-05,2]
[405876421,1771379432274,-37947.304858,7.945e-05,2]
[405876422,1771379432283,-1680.0,7.975e-05,2]
[405876423,1771379432292,-255.0,7.976e-05,2]
[405876424,1771379432302,-1289.014548,8.178e-05,2]
[405876425,1771379432311,-407.430889,8.219e-05,2]
[405876426,1771379432320,-174.613238,8.219e-05,2]
[405876427,1771379432330,-3536.41,8.219e-05,2]
[405876428,1771379432339,-1000.0,8.219e-05,2]
[405876429,1771379432348,-217.0,8.27e-05,2]
[405876430,1771379432359,-397.0,8.43e-05,2]
[405876431,1771379432369,-266.0,8.447e-05,2]
[405876432,1771379432378,-201.0,8.463e-05,2]
[405876433,1771379432388,-500.0,8.503e-05,2]
[405876434,1771379432399,-108.70380593,8.503e-05,2]
[405876435,1771379432412,-391.29619407,8.503e-05,2]
[405876436,1771379432421,-500.0,8.503e-05,2]
[405876437,1771379432434,-342.31978191,8.503e-05,2]
[405876438,1771379432444,-500.0,8.503e-05,2]
[405876439,1771379432453,-500.0,8.503e-05,2]
[405876440,1771379432463,-150.0,8.503e-05,2]
[405876441,1771379432471,-150.0,8.503e-05,2]
[405876442,1771379432481,-150.0,8.503e-05,2]
[405876443,1771379432490,-200881.17544568,8.504e-05,2]
[405876444,1771379432503,-873.20778669,8.504e-05,2]
[405876445,1771379432514,-1186.8261432,8.504e-05,2]
[405876446,1771379432525,-878.47389663,8.504e-05,2]
[405876447,1771379432539,-492.41777302,8.504e-05,2]
[405876449,1771379437648,-67001.53546442,8.504e-05,2]
[405876450,1771379437660,-2020.0,8.504e-05,2]
[405876451,1771379437803,-165661.15106683,8.504e-05,2]
[405876452,1771379437813,-166.0,8.578e-05,2]
[405876453,1771379437821,-1004.0,8.595e-05,2]
[405876454,1771379437831,-2351.0,8.773e-05,2]
[405876455,1771379437840,-433.0,8.774e-05,2]
[405876456,1771379437849,-600.0,8.834e-05,2]
[405876457,1771379437858,-250.0,8.866e-05,2]
[405876458,1771379437867,-161.47,9.067e-05,4]
[405876459,1771379437877,-601.66,9.2e-05,2]
[405876460,1771379437886,-2460.88,9.2e-05,2]
[405876461,1771379437894,-524.85,9.2e-05,2]
[405876462,1771379437903,-1203.74,9.2e-05,2]
[405876464,1771379437912,-2636.74,9.2e-05,2]
[405876466,1771379437922,-2026.98,9.2e-05,2]
[405876467,1771379437933,-577.13,9.2e-05,2]
[405876470,1771379437943,-1000.0,9.247e-05,2]
[405876471,1771379437952,-281.63,9.416e-05,2]
[405876473,1771379437961,-500.0,9.478e-05,2]
[405876475,1771379437970,-500.0,9.478e-05,2]
[405876477,1771379437981,-500.0,9.478e-05,2]
[405876479,1771379437991,-218.37761042,9.478e-05,2]
[405876481,1771379438000,-500.0,9.478e-05,2]
[405876483,1771379438009,-166.82039048,9.478e-05,2]
[405876485,1771379438018,-500.92647612,9.478e-05,2]
[405876487,1771379438027,-500.0,9.478e-05,2]
[405876489,1771379438036,-500.46900966,9.478e-05,2]
[405876491,1771379438045,-500.0,9.478e-05,2]
[405876493,1771379438054,-500.0,9.478e-05,2]
[405876522,1771379438278,-500.0,9.478e-05,2]
[405876527,1771379438340,-160.40129153,9.478e-05,2]
[405876529,1771379438350,-501.86628057,9.478e-05,2]
[405876531,1771379438359,-500.0,9.478e-05,2]
[405876533,1771379438368,-500.0,9.478e-05,2]
[405876535,1771379438377,-500.61965968,9.478e-05,2]
[405876537,1771379438387,-500.0,9.478e-05,2]
[405876539,1771379438396,-500.0,9.478e-05,2]
[405876541,1771379438405,-500.0,9.478e-05,2]
[405876543,1771379438414,-163.61561454,9.478e-05,2]
[405876545,1771379438424,-500.0,9.478e-05,2]
[405876547,1771379438433,-274.55,9.642e-05,2]
[405876549,1771379438442,-3292.0,9.65e-05,2]
[405876551,1771379438451,-736.0,9.651e-05,2]
[405876553,1771379438460,-1413.37,9.67e-05,2]
[405876555,1771379438469,-9999.99,9.67e-05,2]
[405876557,1771379438479,-15802.55,9.88e-05,2]
[405876559,1771379438488,-898.67303292,0.0001,2]
[405876561,1771379438498,-1010.65,0.0001,2]
[405876563,1771379438507,-500.0,0.0001,2]
[405876565,1771379438517,-200.0,0.0001,2]
[405876567,1771379438527,-166.60897406,0.0001,2]
[405876569,1771379438537,-500.0,0.0001,2]
[405876571,1771379438547,-500.0,0.0001,2]
[405876572,1771379438556,-500.0,0.0001,2]
[405876574,1771379438565,-500.0,0.0001,2]
[405876576,1771379438575,-500.0,0.0001,2]
[405876578,1771379438584,-500.0,0.0001,2]
[405876580,1771379438594,-151.0,0.0001,2]
[405876582,1771379438603,-500.0,0.0001,2]
[405876584,1771379438613,-500.0,0.0001,2]
[405876586,1771379438623,-151.0,0.0001,2]
[405876588,1771379438632,-500.0,0.0001,2]
[405876590,1771379438641,-500.0,0.0001,2]
[405876591,1771379438651,-151.0,0.0001,2]
[405876592,1771379438661,-500.0,0.0001,2]
[405876593,1771379438671,-500.0,0.0001,2]
[405876594,1771379438681,-151.0,0.0001,2]
[405876595,1771379438690,-500.0,0.0001,2]
[405876596,1771379438700,-500.0,0.0001,2]
[405876597,1771379438711,-151.0,0.0001,2]
[405876598,1771379438719,-500.0,0.0001,2]
[405876599,1771379438729,-500.0,0.0001,2]
[405876600,1771379438738,-151.0,0.0001,2]
[405876601,1771379438747,-500.0,0.0001,2]
[405876602,1771379438757,-500.0,0.0001,2]
[405876603,1771379438766,-152.88486475,0.0001,2]
[405876604,1771379438776,-500.0,0.0001,2]
[405876605,1771379438784,-500.0,0.0001,2]
[405876606,1771379438794,-500.0,0.0001,2]
[405876607,1771379438803,-500.0,0.0001,2]
[405876608,1771379438812,-151.0,0.0001,2]
[405876609,1771379438820,-151.0,0.0001,2]
[405876610,1771379438829,-151.0,0.0001,2]
[405876611,1771379438838,-151.0,0.0001,2]
[405876612,1771379438847,-151.0,0.0001,2]
[405876613,1771379438856,-151.0,0.0001,2]
[405876614,1771379438865,-151.0,0.0001,2]
[405876615,1771379438874,-151.0,0.0001,2]
[405876616,1771379438883,-151.0,0.0001,2]
[405876617,1771379438892,-151.0,0.0001,2]
[405876618,1771379438901,-151.0,0.0001,2]
[405876619,1771379438910,-151.0,0.0001,2]